fUST/lending_fUST_20250514
["ID","MTS","AMOUNT","RATE_DAILY","PERIOD"]
[360994307,1747187436999,-400.0,0.00013698,2]
[360994308,1747187437009,-400.0,0.00013698,2]
[360994309,1747187437021,-409.55053108,0.00013698,2]
[360994310,1747187437031,-549.45557869,0.00013698,2]
[360994311,1747187437040,-400.0,0.00013698,2]
[360994312,1747187437049,-318.72519862,0.00013698,2]
[360994313,1747187437059,-414.33914691,0.00013698,2]
[360994314,1747187437069,-401.3785465,0.00013698,2]
[360994315,1747187437078,-400.0,0.00013698,2]
[360994316,1747187437090,-400.0,0.00013698,2]
[360994317,1747187437099,-412.18471918,0.00013698,2]
[360994318,1747187437109,-400.0,0.00013698,2]
[360994319,1747187437118,-400.0,0.00013698,2]
[360994320,1747187437127,-409.08778786,0.00013698,2]
[360994321,1747187437136,-454.43302056,0.00013698,2]
[360994322,1747187437146,-502.68184525,0.00013698,2]
[360994323,1747187437156,-411.41181177,0.00013698,2]
[360994324,1747187437166,-400.0,0.00013698,2]
[360994325,1747187437176,-400.93640795,0.00013698,2]
[360994326,1747187437186,-412.29612904,0.00013698,2]
[360994327,1747187437196,-1270.69,0.00013698,2]
[360994328,1747187437205,-400.0,0.00013698,2]
[360994329,1747187437214,-404.2834864,0.00013698,2]
[360994330,1747187437423,-400.0,0.00013698,2]
[360994331,1747187437434,-409.0002433,0.00013698,2]
[360994332,1747187437445,-408.19106921,0.00013698,2]
[360994333,1747187437455,-487.92612377,0.00013698,2]
[360994334,1747187437465,-400.83679168,0.00013698,2]
[360994335,1747187437474,-400.91865612,0.00013698,2]
[360994336,1747187437484,-301.8072082,0.00013698,2]
[360994337,1747187437494,-407.44085461,0.00013698,2]
[360994338,1747187437504,-400.0,0.00013698,2]
[360994339,1747187437515,-405.00344411,0.00013698,2]
[360994340,1747187437525,-400.52851043,0.00013698,2]
[360994342,1747187437535,-510.34305387,0.00013698,2]
[360994343,1747187437545,-400.0,0.00013698,2]
[360994344,1747187437555,-400.0,0.00013698,2]
[360994345,1747187437565,-400.0,0.00013698,2]
[360994346,1747187437575,-400.0,0.00013698,2]
[360994347,1747187437586,-400.0,0.00013698,2]
[360994348,1747187437596,-400.0,0.00013698,2]
[360994349,1747187437606,-407.30998667,0.00013698,2]
[360994350,1747187437615,-400.0,0.00013698,2]
[360994351,1747187437625,-403.26694791,0.00013698,2]
[360994352,1747187437634,-402.18932495,0.00013698,2]
[360994354,1747187437644,-656.3,0.00013698,2]
[360994355,1747187437654,-402.40403778,0.00013698,2]
[360994356,1747187437664,-403.37575787,0.00013698,2]
[360994357,1747187437674,-400.0,0.00013698,2]
[360994358,1747187437684,-400.0,0.00013698,2]
[360994360,1747187437694,-504.20727406,0.00013698,2]
[360994361,1747187437703,-400.0,0.00013698,2]
[360994363,1747187437713,-403.72432265,0.00013698,2]
[360994365,1747187437723,-634.962491,0.00013699,2]
[360994366,1747187437733,-400.84653443,0.00013972,2]
[360994367,1747187437744,-284.93888285,0.00013972,2]
[360994368,1747187437754,-258.34399506,0.00013972,2]
[360994369,1747187437766,-368.31176339,0.00013972,2]
[360994370,1747187437776,-401.25511877,0.00013972,2]
[360994371,1747187437785,-400.0,0.00013972,2]
[360994372,1747187437796,-400.0,0.00013972,2]
[360994374,1747187437805,-403.17907123,0.00013972,2]
[360994375,1747187437815,-402.01673698,0.00013972,2]
[360994376,1747187437825,-402.06303284,0.00013972,2]
[360994377,1747187437835,-279.93228661,0.00013972,2]
[360994378,1747187437846,-400.0,0.00013972,2]
[360994379,1747187437861,-400.0,0.00013972,2]
[360994380,1747187437871,-402.15510103,0.00013972,2]
[360994382,1747187437880,-400.0,0.00013972,2]
[360994384,1747187437891,-386.80132431,0.00013972,2]
[360994385,1747187437901,-400.0,0.00013972,2]
[360994386,1747187437911,-400.0,0.00013972,2]
[360994387,1747187437920,-454.33234436,0.00013972,2]
[360994388,1747187437931,-400.0,0.00013972,2]
[360994389,1747187437942,-308.62219586,0.00013972,2]
[360994390,1747187437953,-158.77946941,0.00013972,2]
[360994391,1747187437962,-203.34159048,0.00013972,2]
[360994392,1747187437972,-348.08705769,0.00013972,2]
[360994393,1747187437981,-306.81775344,0.00013972,2]
[360994394,1747187437991,-400.0,0.00013972,2]
[360994395,1747187438001,-464.26442377,0.00013972,2]
[360994396,1747187438013,-400.0,0.00013972,2]
[360994397,1747187438023,-525.95299904,0.00013972,2]
[360994398,1747187438033,-400.0,0.00013972,2]
[360994399,1747187438043,-400.0,0.00013972,2]
[360994400,1747187438052,-400.0,0.00013972,2]
[360994401,1747187438062,-400.0,0.00013972,2]
[360994402,1747187438072,-217.08338819,0.00013972,2]
[360994403,1747187438081,-400.0,0.00013972,2]
[360994404,1747187438092,-400.0,0.00013972,2]
[360994405,1747187438102,-400.0,0.00013972,2]
[360994406,1747187438112,-400.0,0.00013972,2]
[360994407,1747187438122,-504.63495815,0.00013972,2]
[360994408,1747187438131,-400.0,0.00013972,2]
[360994409,1747187438141,-400.0,0.00013972,2]
[360994410,1747187438151,-400.0,0.00013972,2]
[360994411,1747187438161,-547.68413526,0.00013972,2]
[360994412,1747187438171,-400.0,0.00013972,2]
[360994413,1747187438181,-409.34220982,0.00013972,2]
[360994414,1747187438191,-655.36,0.00013972,2]
[360994415,1747187438201,-400.0,0.00013972,2]
[360994416,1747187438210,-400.0,0.00013972,2]
[360994417,1747187438220,-400.0,0.00013972,2]
[360994418,1747187438230,-512.30813155,0.00013972,2]
[360994419,1747187438240,-407.55833379,0.00013972,2]
[360994420,1747187438250,-400.0,0.00013972,2]
[360994421,1747187438260,-451.48899086,0.00013972,2]
[360994422,1747187438271,-178.06989062,0.00013972,2]
[360994423,1747187438281,-406.92423739,0.00013972,2]
[360994424,1747187438290,-400.0,0.00013972,2]
[360994425,1747187438300,-3516.83,0.00013972,2]
[360994426,1747187438312,-400.0,0.00013972,2]
[360994427,1747187438322,-400.0,0.00013972,2]
[360994428,1747187438332,-400.0,0.00013972,2]
[360994429,1747187438342,-648.73,0.00013972,2]
[360994430,1747187438351,-400.0,0.00013972,2]
[360994431,1747187438362,-281.9078478,0.00013972,2]
[360994432,1747187438372,-230.55102662,0.00013972,2]
[360994433,1747187438381,-400.0,0.00013972,2]
[360994434,1747187438391,-400.0,0.00013972,2]
[360994435,1747187438401,-400.0,0.00013972,2]
[360994436,1747187438411,-1301.50932551,0.00013972,2]
[360994437,1747187438434,-25.39067449,0.00013972,2]
[360994438,1747187438444,-400.0,0.00013972,2]
[360994439,1747187438454,-399.2099649,0.00013972,2]
[360994440,1747187438464,-409.26063339,0.00013972,2]
[360994441,1747187438473,-726.79,0.00013972,2]
[360994442,1747187438483,-400.0,0.00013972,2]
[360994443,1747187438494,-237.853538,0.00013972,2]
[360994444,1747187438503,-177.20054747,0.00013972,2]
[360994445,1747187438514,-400.0,0.00013972,2]
[360994446,1747187438523,-400.0,0.00013972,2]
[360994447,1747187438533,-469.6958264,0.00013972,2]
[360994448,1747187438543,-400.0,0.00013972,2]
[360994449,1747187438553,-158.52803603,0.00013972,2]
[360994450,1747187438562,-1363.97,0.00013972,2]
[360994451,1747187438572,-419.87000839,0.00013972,2]
[360994452,1747187438581,-424.57739151,0.00013972,2]
[360994453,1747187438591,-400.0,0.00013972,2]
[360994454,1747187438601,-435.86784095,0.00013972,2]
[360994455,1747187438611,-400.0,0.00013972,2]
[360994456,1747187438621,-275.57284534,0.00013972,2]
[360994457,1747187438631,-400.0,0.00013972,2]
[360994458,1747187438641,-400.0,0.00013972,2]
[360994459,1747187438651,-400.0,0.00013972,2]
[360994460,1747187438660,-400.0,0.00013972,2]
[360994461,1747187438670,-400.0,0.00013972,2]
[360994462,1747187438680,-400.0,0.00013972,2]
[360994463,1747187438690,-400.0,0.00013972,2]
[360994464,1747187438699,-1270.69,0.00013972,2]
[360994465,1747187438710,-400.0,0.00013972,2]
[360994466,1747187438719,-400.0,0.00013972,2]
[360994467,1747187438729,-400.0,0.00013972,2]
[360994468,1747187438740,-384.26522277,0.00013972,2]
[360994469,1747187438749,-257.20056008,0.00013972,2]
[360994470,1747187438758,-400.0,0.00013972,2]
[360994471,1747187438769,-400.0,0.00013972,2]
[360994472,1747187438779,-400.0,0.00013972,2]
[360994473,1747187438789,-656.3,0.00013972,2]
[360994474,1747187438798,-400.0,0.00013972,2]
[360994475,1747187438808,-400.0,0.00013972,2]
[360994476,1747187438817,-400.0,0.00013972,2]
[360994477,1747187438827,-402.17,0.00014,2]
[360994478,1747187438837,-363.47828726,0.00014246,2]
[360994479,1747187438847,-400.0,0.00014246,2]
[360994480,1747187438859,-349.5980138,0.00014246,2]
[360994481,1747187438868,-400.0,0.00014246,2]
[360994482,1747187438878,-400.0,0.00014246,2]
[360994483,1747187438887,-400.0,0.00014246,2]
[360994484,1747187438898,-400.0,0.00014246,2]
[360994485,1747187438908,-400.0,0.00014246,2]
[360994486,1747187438917,-402.73050993,0.00014246,2]
[360994487,1747187438927,-400.0,0.00014246,2]
[360994488,1747187438936,-400.0,0.00014246,2]
[360994489,1747187438946,-400.0,0.00014246,2]
[360994490,1747187438956,-400.0,0.00014246,2]
[360994491,1747187438966,-400.0,0.00014246,2]
[360994492,1747187438975,-400.0,0.00014246,2]
[360994493,1747187438985,-386.46267437,0.00014246,2]
[360994494,1747187438996,-400.0,0.00014246,2]
[360994495,1747187439007,-250.43171613,0.00014246,2]
[360994496,1747187439022,-188.05253853,0.00014246,2]
[360994497,1747187439163,-211.94746147,0.00014246,2]
[360994498,1747187439174,-254.5155047,0.00014246,2]
[360994499,1747187439184,-400.0,0.00014246,2]
[360994500,1747187439194,-186.67611533,0.00014246,2]
[360994501,1747187439209,-655.36,0.00014246,2]
[360994502,1747187439222,-400.0,0.00014246,2]
[360994503,1747187439236,-400.0,0.00014246,2]
[360994504,1747187439249,-400.0,0.00014246,2]
[360994505,1747187439263,-400.0,0.00014246,2]
[360994506,1747187439276,-200.97358316,0.00014246,2]
[360994507,1747187439287,-3516.83,0.00014246,2]
[360994508,1747187439298,-400.0,0.00014246,2]
[360994509,1747187439308,-277.33092757,0.00014246,2]
[360994510,1747187439322,-400.0,0.00014246,2]
[360994511,1747187439336,-648.73,0.00014246,2]
[360994512,1747187439347,-251.8602458,0.00014246,2]
[360994513,1747187439359,-400.0,0.00014246,2]
[360994514,1747187439371,-400.0,0.00014246,2]
[360994515,1747187439384,-400.0,0.00014246,2]
[360994516,1747187439397,-1326.9,0.00014246,2]
[360994517,1747187439410,-400.0,0.00014246,2]
[360994518,1747187439422,-224.33310957,0.00014246,2]
[360995237,1747187447381,-5000.0,0.00013561,2]
[360995239,1747187447391,-400.0,0.00013698,2]
[360995241,1747187447401,-400.0,0.00013698,2]
[360995243,1747187447411,-1161.03,0.00013698,2]
[360995245,1747187447420,-400.0,0.00013972,2]
[360995247,1747187447430,-371.83663428,0.00013972,2]
[360995249,1747187447441,-1161.03,0.00013972,2]
[360995251,1747187447450,-242.86850454,0.00014246,2]
[360995260,1747187447531,-400.0,0.00013698,2]
[360995263,1747187447541,-259.58838589,0.00014246,2]
[360995265,1747187447551,-178.08924925,0.00014246,2]
[360995267,1747187447561,-28.11744493,0.00014246,2]
[360995416,1747187631797,466.0,0.00010496,2]
[360995417,1747187649296,-400.0,0.00010391,2]
[360995418,1747187712970,-4500.0,0.00010391,2]
[360995420,1747187849403,-5000.0,0.00010287,2]
[360995422,1747188113403,-4843.0,0.00010286,2]
[360995424,1747188244566,-325.5455307,0.00010183,2]
[360995425,1747188246197,-160.73962839,0.00010183,2]
[360995426,1747188246359,-4479.0,0.00010183,2]
[360995427,1747188248203,-34.71484091,0.00010183,2]
[360995430,1747188500495,-278.72557297,9.526e-05,2]
[360995431,1747188502654,-196.84766602,9.526e-05,2]
[360995432,1747188504697,-284.24771742,9.526e-05,2]
[360995435,1747188509996,-7168.0,9.526e-05,2]
[360995436,1747188510434,-53.49544549,9.526e-05,2]
[360995486,1747188632486,-5000.0,0.00010281,2]
[360995489,1747188632497,-300.0,0.00010487,2]
[360995492,1747188632507,-970.71469592,0.00010488,2]
[360995495,1747188632518,-500.0,0.00010488,2]
[360995498,1747188632528,-500.0,0.00010488,2]
[360995501,1747188632540,-500.0,0.00010488,2]
[360995504,1747188632551,-500.0,0.00010488,2]
[360995508,1747188632561,-500.0,0.00010488,2]
[360995511,1747188632572,-500.0,0.00010488,2]
[360995514,1747188632587,-500.0,0.00010488,2]
[360995516,1747188632602,-500.0,0.00010488,2]
[360995521,1747188632617,-343.6374488,0.00010488,2]
[360995524,1747188632629,-500.0,0.00010488,2]
[360995527,1747188632639,-500.0,0.00010488,2]
[360995530,1747188632650,-500.0,0.00010488,2]
[360995532,1747188632660,-500.0,0.00010488,2]
[360995534,1747188632671,-500.0,0.00010488,2]
[360995537,1747188632681,-500.0,0.00010488,2]
[360995539,1747188632691,-500.0,0.00010488,2]
[360995541,1747188632701,-500.0,0.00010488,2]
[360995544,1747188632710,-534.25932716,0.00010488,2]
[360995547,1747188632720,-500.0,0.00010488,2]
[360995549,1747188632730,-500.0,0.00010488,2]
[360995552,1747188632740,-500.0,0.00010488,2]
[360995554,1747188632750,-500.0,0.00010488,2]
[360995556,1747188632759,-500.0,0.00010488,2]
[360995558,1747188632770,-500.0,0.00010488,2]
[360995560,1747188632780,-500.0,0.00010488,2]
[360995562,1747188632792,-500.0,0.00010488,2]
[360995564,1747188632802,-500.0,0.00010488,2]
[360995566,1747188632814,-500.0,0.00010488,2]
[360995568,1747188632824,-500.0,0.00010488,2]
[360995570,1747188632834,-500.0,0.00010488,2]
[360995572,1747188632844,-500.0,0.00010488,2]
[360995574,1747188632854,-500.0,0.00010488,2]
[360995576,1747188632864,-500.0,0.00010488,2]
[360995578,1747188632874,-500.0,0.00010488,2]
[360995580,1747188632884,-500.0,0.00010488,2]
[360995582,1747188632894,-500.0,0.00010488,2]
[360995584,1747188632904,-500.0,0.00010488,2]
[360995586,1747188632914,-500.0,0.00010488,2]
[360995588,1747188632924,-500.0,0.00010488,2]
[360995590,1747188632934,-500.0,0.00010488,2]
[360995592,1747188632944,-500.0,0.00010488,2]
[360995594,1747188632953,-500.0,0.00010488,2]
[360995596,1747188632963,-500.0,0.00010488,2]
[360995598,1747188632972,-500.0,0.00010488,2]
[360995600,1747188632982,-500.0,0.00010488,2]
[360995602,1747188632992,-500.0,0.00010488,2]
[360995604,1747188633003,-500.0,0.00010488,2]
[360995606,1747188633013,-365.59588496,0.00010488,2]
[360995608,1747188633023,-500.0,0.00010488,2]
[360995610,1747188633036,-500.0,0.00010488,2]
[360995612,1747188633047,-500.0,0.00010488,2]
[360995614,1747188633058,-500.0,0.00010488,2]
[360995616,1747188633070,-500.0,0.00010488,2]
[360995618,1747188633082,-500.0,0.00010488,2]
[360995620,1747188633094,-500.0,0.00010488,2]
[360995623,1747188633105,-500.0,0.00010488,2]
[360995624,1747188633117,-500.0,0.00010488,2]
[360995625,1747188633129,-500.0,0.00010488,2]
[360995626,1747188633140,-185.0,0.00010488,2]
[360995628,1747188633151,-244.0,0.00010488,2]
[360995630,1747188633163,-300.0,0.00010488,2]
[360995632,1747188633176,-499.0,0.00010488,2]
[360995634,1747188633187,-500.0,0.00010489,2]
[360995636,1747188633198,-500.0,0.00010489,2]
[360995638,1747188633209,-462.53605485,0.00010489,2]
[360995640,1747188633220,-628.76472428,0.00010489,2]
[360995642,1747188633230,-500.0,0.00010489,2]
[360995644,1747188633241,-500.0,0.00010489,2]
[360995646,1747188633253,-500.0,0.00010489,2]
[360995648,1747188633264,-500.0,0.00010489,2]
[360995650,1747188633275,-500.0,0.00010489,2]
[360995652,1747188633289,-500.0,0.00010489,2]
[360995654,1747188633300,-500.0,0.00010489,2]
[360995656,1747188633310,-532.15815807,0.00010489,2]
[360995657,1747188633320,-500.0,0.00010489,2]
[360995659,1747188633330,-500.0,0.00010489,2]
[360995661,1747188633340,-500.0,0.00010489,2]
[360995663,1747188633350,-500.0,0.00010489,2]
[360995666,1747188633361,-500.0,0.00010489,2]
[360995668,1747188633371,-500.0,0.00010489,2]
[360995670,1747188633381,-282.33719971,0.00010489,2]
[360995672,1747188633391,-50000.0,0.00010489,2]
[360995674,1747188633400,-503.44414051,0.00010492,2]
[360995676,1747188633411,-155.25,0.00010634,2]
[360995678,1747188633420,-237.88391865,0.00010959,2]
[360995679,1747188633431,-300.0,0.00011531,2]
[360995680,1747188633441,-24900.0,0.00012749,2]
[360995681,1747188633451,-478.42366841,0.000129,2]
[360995682,1747188633461,-478.42366836,0.000129,2]
[360995683,1747188633471,-207.4,0.00013188,2]
[360995685,1747188633481,-1427.54835571,0.000133,2]
[360995687,1747188633490,-10377.07522566,0.000134,2]
[360995689,1747188633500,-10377.07522549,0.000134,2]
[360995691,1747188633510,-10377.07522549,0.000134,2]
[360995693,1747188633519,-10377.07522549,0.00013555,2]
[360995695,1747188633528,-500.0,0.00013673,2]
[360995697,1747188633541,-500.0,0.00013673,2]
[360995699,1747188633550,-502.64358769,0.00013673,2]
[360995701,1747188633560,-500.0,0.00013673,2]
[360995703,1747188633569,-500.0,0.00013673,2]
[360995705,1747188633579,-500.0,0.00013673,2]
[360995707,1747188633589,-500.0,0.00013673,2]
[360995709,1747188633600,-500.0,0.00013673,2]
[360995711,1747188633610,-500.0,0.00013673,2]
[360995713,1747188633619,-151.36020982,0.0001369,2]
[360995715,1747188633630,-374.72981331,0.00013698,2]
[360995717,1747188633639,-195.47913463,0.00013698,2]
[360995719,1747188633650,-160.0,0.00013698,2]
[360995721,1747188633660,-400.0,0.00013698,2]
[360995723,1747188633672,-400.0,0.00013698,2]
[360995725,1747188633683,-404.65276584,0.00013698,2]
[360995727,1747188633695,-424.03863195,0.00013698,2]
[360995729,1747188633706,-400.0,0.00013698,2]
[360995731,1747188633717,-400.0,0.00013698,2]
[360995733,1747188633728,-400.5702489,0.00013698,2]
[360995735,1747188633739,-400.0,0.00013698,2]
[360995737,1747188633751,-400.0,0.00013698,2]
[360995739,1747188633763,-505.11007399,0.00013698,2]
[360995742,1747188633775,-400.0,0.00013698,2]
[360995744,1747188633794,-400.0,0.00013698,2]
[360995746,1747188633808,-400.0,0.00013698,2]
[360995748,1747188633820,-400.0,0.00013698,2]
[360995750,1747188633833,-400.0,0.00013698,2]
[360995752,1747188633845,-404.80335734,0.00013698,2]
[360995754,1747188633856,-400.0,0.00013698,2]
[360995757,1747188633867,-400.0,0.00013698,2]
[360995759,1747188633878,-400.0,0.00013698,2]
[360995761,1747188633890,-400.0,0.00013698,2]
[360995763,1747188633901,-416.35568236,0.00013698,2]
[360995765,1747188633914,-400.0,0.00013698,2]
[360995767,1747188633926,-400.0,0.00013698,2]
[360995769,1747188633938,-309.580068,0.00013698,2]
[360995771,1747188633949,-400.0,0.00013698,2]
[360995773,1747188633962,-400.0,0.00013698,2]
[360995775,1747188633974,-400.0,0.00013698,2]
[360995777,1747188633986,-400.0,0.00013698,2]
[360995779,1747188633998,-400.0,0.00013698,2]
[360995781,1747188634012,-400.0,0.00013698,2]
[360995784,1747188634026,-400.0,0.00013698,2]
[360995786,1747188634048,-400.0,0.00013698,2]
[360995788,1747188634060,-400.0,0.00013698,2]
[360995790,1747188634072,-400.0,0.00013698,2]
[360995792,1747188634085,-400.0,0.00013698,2]
[360995794,1747188634097,-400.0,0.00013698,2]
[360995796,1747188634112,-400.0,0.00013698,2]
[360995798,1747188634124,-400.0,0.00013698,2]
[360995800,1747188634135,-400.0,0.00013698,2]
[360995802,1747188634147,-400.0,0.00013698,2]
[360995804,1747188634159,-400.0,0.00013698,2]
[360995806,1747188634171,-400.0,0.00013698,2]
[360995808,1747188634182,-400.0,0.00013698,2]
[360995809,1747188634193,-400.0,0.00013698,2]
[360995810,1747188634205,-413.35254322,0.00013698,2]
[360995811,1747188634216,-400.0,0.00013698,2]
[360995812,1747188634227,-404.7905009,0.00013698,2]
[360995813,1747188634238,-400.0,0.00013698,2]
[360995814,1747188634252,-400.0,0.00013698,2]
[360995815,1747188634264,-400.0,0.00013698,2]
[360995816,1747188634275,-400.0,0.00013698,2]
[360995817,1747188634296,-400.0,0.00013698,2]
[360995818,1747188634308,-400.0,0.00013698,2]
[360995819,1747188634320,-504.74165486,0.00013698,2]
[360995820,1747188634331,-400.0,0.00013698,2]
[360995821,1747188634341,-406.77674521,0.00013698,2]
[360995822,1747188634352,-400.0,0.00013698,2]
[360995823,1747188634362,-153.14995908,0.00013698,2]
[360995824,1747188634373,-400.0,0.00013698,2]
[360995825,1747188634383,-400.0,0.00013698,2]
[360995826,1747188634394,-404.38024094,0.00013698,2]
[360995827,1747188634403,-401.01885144,0.00013698,2]
[360995828,1747188634415,-400.0,0.00013698,2]
[360995829,1747188634426,-503.76271534,0.00013698,2]
[360995830,1747188634439,-400.0,0.00013698,2]
[360995831,1747188634450,-400.0,0.00013698,2]
[360995832,1747188634461,-408.15506829,0.00013698,2]
[360995833,1747188634472,-401.09086438,0.00013698,2]
[360995834,1747188634483,-515.40365239,0.00013698,2]
[360995835,1747188634493,-403.58973061,0.00013698,2]
[360995836,1747188634504,-400.0,0.00013698,2]
[360995837,1747188634515,-505.39024693,0.00013698,2]
[360995838,1747188634529,-400.0,0.00013698,2]
[360995839,1747188634562,-400.0,0.00013698,2]
[360995840,1747188634574,-400.0,0.00013698,2]
[360995841,1747188634585,-406.78481373,0.00013698,2]
[360995842,1747188634596,-400.73821432,0.00013698,2]
[360995843,1747188634606,-381.14961371,0.00013698,2]
[360995844,1747188634618,-400.0,0.00013698,2]
[360995845,1747188634628,-400.0,0.00013698,2]
[360995846,1747188634641,-400.0,0.00013698,2]
[360995847,1747188634651,-400.61465192,0.00013698,2]
[360995848,1747188634662,-400.0,0.00013698,2]
[360995849,1747188634674,-400.0,0.00013698,2]
[360995850,1747188634685,-404.36136671,0.00013698,2]
[360995851,1747188634696,-400.0,0.00013698,2]
[360995852,1747188634705,-403.91403066,0.00013698,2]
[360995853,1747188634716,-404.92989416,0.00013698,2]
[360995854,1747188634726,-400.0,0.00013698,2]
[360995855,1747188634737,-403.95214377,0.00013698,2]
[360995856,1747188634748,-400.0,0.00013698,2]
[360995857,1747188634758,-404.59017517,0.00013698,2]
[360995858,1747188634768,-407.98822457,0.00013698,2]
[360995859,1747188634780,-503.81874293,0.00013698,2]
[360995860,1747188634793,-493.21,0.00013698,2]
[360995861,1747188634804,-405.32133217,0.00013698,2]
[360995862,1747188634814,-400.0,0.00013698,2]
[360995863,1747188634825,-252.44226511,0.00013698,2]
[360995864,1747188634836,-400.0,0.00013698,2]
[360995865,1747188634846,-405.77261429,0.00013698,2]
[360995866,1747188634856,-400.0,0.00013698,2]
[360995867,1747188634867,-400.0,0.00013698,2]
[360995868,1747188634878,-413.39655712,0.00013698,2]
[360995869,1747188634888,-400.0,0.00013698,2]
[360995870,1747188634898,-404.31685093,0.00013698,2]
[360995871,1747188634909,-404.65629826,0.00013698,2]
[360995872,1747188634918,-412.6835977,0.00013698,2]
[360995873,1747188634929,-406.4096161,0.00013698,2]
[360995874,1747188635110,-400.64220031,0.00013698,2]
[360995875,1747188635138,-400.0,0.00013698,2]
[360995876,1747188635148,-404.3997008,0.00013698,2]
[360995877,1747188635158,-400.0,0.00013698,2]
[360995878,1747188635172,-405.20413628,0.00013698,2]
[360995879,1747188635182,-400.0,0.00013698,2]
[360995880,1747188635192,-227.4869911,0.00013698,2]
[360995881,1747188635202,-229.92448833,0.00013698,2]
[360995882,1747188635211,-406.52037765,0.00013698,2]
[360995883,1747188635221,-412.19624665,0.00013698,2]
[360995884,1747188635230,-400.0,0.00013698,2]
[360995885,1747188635241,-549.88013473,0.00013698,2]
[360995886,1747188635250,-400.0,0.00013698,2]
[360995887,1747188635259,-411.86017405,0.00013698,2]
[360995888,1747188635268,-400.0,0.00013698,2]
[360995889,1747188635278,-402.04787853,0.00013698,2]
[360995890,1747188635291,-406.79099353,0.00013698,2]
[360995891,1747188635300,-519.61086077,0.00013698,2]
[360995892,1747188635310,-407.64828595,0.00013698,2]
[360995893,1747188635320,-400.0,0.00013698,2]
[360995894,1747188635331,-401.56273335,0.00013698,2]
[360995895,1747188635342,-404.01017229,0.00013698,2]
[360995896,1747188635352,-500.0,0.00013698,2]
[360995897,1747188635362,-400.0,0.00013698,2]
[360995898,1747188635372,-500.0,0.00013698,2]
[360995899,1747188635382,-500.0,0.00013698,2]
[360995900,1747188635393,-500.0,0.00013698,2]
[360995901,1747188635404,-400.0,0.00013698,2]
[360995902,1747188635414,-500.0,0.00013698,2]
[360995903,1747188635426,-532.50674855,0.00013698,2]
[360995904,1747188635437,-410.19453432,0.00013698,2]
[360995905,1747188635447,-400.0,0.00013698,2]
[360995906,1747188635458,-400.0,0.00013698,2]
[360995907,1747188635468,-400.0,0.00013698,2]
[360995908,1747188635478,-404.82712756,0.00013698,2]
[360995909,1747188635489,-403.06096449,0.00013698,2]
[360995910,1747188635499,-402.20107437,0.00013698,2]
[360995911,1747188635510,-400.0,0.00013698,2]
[360995912,1747188635520,-403.5118456,0.00013698,2]
[360995913,1747188635530,-410.29835819,0.00013698,2]
[360995914,1747188635546,-402.37702691,0.00013698,2]
[360995915,1747188635556,-404.21383187,0.00013698,2]
[360995916,1747188635567,-380.0,0.00013698,2]
[360995917,1747188635577,-400.80485483,0.00013698,2]
[360995918,1747188635587,-402.36667389,0.00013698,2]
[360995919,1747188635598,-402.24732521,0.00013698,2]
[360995920,1747188635609,-400.0,0.00013698,2]
[360995921,1747188635619,-505.49335789,0.00013698,2]
[360995922,1747188635630,-408.82548461,0.00013698,2]
[360995923,1747188635641,-400.5862304,0.00013698,2]
[360995924,1747188635651,-400.0,0.00013698,2]